{"text_format":"3","workbook":"xlsx","n_sheets":3,"sheets":["Podaci o potencijalnom klijentu","Predviđena prodaja","Mjeseč. ponderirano predviđanje"],"not_rendered":{"charts":1,"defined_names":10},"read":"whole","date_system":"1900"}

{"sheet":"Podaci o potencijalnom klijentu","index":0,"n_rows":9,"n_cols":10,"rows_kept":9,"merged":[[3,1,3,8]]}
[null,"Naziv tvrtke"]
[null,"Detaljna evidencija o potencijalnim klijentima"]
[null,{"$f":"TODAY()","v":"2018-07-24"}]
[null,{"$f":"Naziv_tvrtke","v":"Naziv tvrtke"},{"$nulls":7},"POVJERLJIVO"]
[null,"Naziv potencijalnog klijenta","Kontakt potencijalnog klijenta","Potencijalni klijent Izvor","Potencijalni klijent Regija","Potencijalni klijent Vrsta","Potencijalne prilike","Mogućnost prodaje","Predviđanje sklapanja posla","Ponderirano Predviđanje"]
[null,"A. Datum Corporation",{"$nulls":3},"Strateška",{"v":300000,"d":"300,000.00 kn"},{"v":0.9,"d":"90%"},"Siječanj",{"$f":"IFERROR(IF(PodaciOPotencijalnomKlijentu[Mogućnost prodaje]<>\"\",PodaciOPotencijalnomKlijentu[Mogućnost prodaje]*PodaciOPotencijalnomKlijentu[Potencijalne prilike],\"\"),\"\")","v":{"v":270000,"d":"270,000.00 kn"}}]
[null,"Adventure Works",{"$nulls":3},"Strateška",{"v":200000,"d":"200,000.00 kn"},{"v":0.1,"d":"10%"},"Veljača",{"$f":"IFERROR(IF(PodaciOPotencijalnomKlijentu[Mogućnost prodaje]<>\"\",PodaciOPotencijalnomKlijentu[Mogućnost prodaje]*PodaciOPotencijalnomKlijentu[Potencijalne prilike],\"\"),\"\")","v":{"v":20000,"d":"20,000.00 kn"}}]
[null,"Alpine Ski House",{"$nulls":3},"Taktička",{"v":100000,"d":"100,000.00 kn"},{"v":0.2,"d":"20%"},"Ožujak",{"$f":"IFERROR(IF(PodaciOPotencijalnomKlijentu[Mogućnost prodaje]<>\"\",PodaciOPotencijalnomKlijentu[Mogućnost prodaje]*PodaciOPotencijalnomKlijentu[Potencijalne prilike],\"\"),\"\")","v":{"v":20000,"d":"20,000.00 kn"}}]
[null,"Zbroj",{"$nulls":4},{"$f":"SUBTOTAL(109,PodaciOPotencijalnomKlijentu[Potencijalne prilike])","v":{"v":600000,"d":"600,000.00 kn"}},null,null,{"$f":"SUBTOTAL(109,PodaciOPotencijalnomKlijentu[Ponderirano Predviđanje])","v":{"v":310000,"d":"310,000.00 kn"}}]

{"sheet":"Predviđena prodaja","index":1,"n_rows":21,"n_cols":14,"rows_kept":21,"merged":[[3,1,3,11],[3,12,3,13]]}
[null,{"$f":"Naziv_tvrtke","v":"Naziv tvrtke"}]
[null,"Predviđena prodaja"]
[null,{"$f":"DatumEvidencije","v":"2018-07-24"}]
[null,{"$f":"Naziv_tvrtke","v":"Naziv tvrtke"},{"$nulls":10},"POVJERLJIVO"]
[null,"Naziv potencijalnog klijenta","Siječanj Predviđanje","Veljača Predviđanje","Ožujak Predviđanje","Travanj Predviđanje","Svibanj Predviđanje","Lipanj Predviđanje","Srpanj Predviđanje","Kolovoz Predviđanje","Rujan Predviđanje","Listopad Predviđanje","Studeni Predviđanje","Prosinac Predviđanje"]
[null,{"$f":"IFERROR(IF(AND(PodaciOPotencijalnomKlijentu[Naziv potencijalnog klijenta] <> \"\", ROW(PredviđenaProdaja[Naziv potencijalnog klijenta])<>ZadnjiUnos),PodaciOPotencijalnomKlijentu[Naziv potencijalnog klijenta], \"\"),\"\")","v":"A. Datum Corporation"},{"$f":"IFERROR(IF(PodaciOPotencijalnomKlijentu[Predviđanje sklapanja posla] <>\"\",IF(PodaciOPotencijalnomKlijentu[Predviđanje sklapanja posla]= \"Siječanj\",PodaciOPotencijalnomKlijentu[Ponderirano Predviđanje],0),\"\"),\"\")","v":{"v":270000,"d":"270,000 kn"}},{"$f":"IFERROR(IF(PodaciOPotencijalnomKlijentu[Predviđanje sklapanja posla] <>\"\",IF(PodaciOPotencijalnomKlijentu[Predviđanje sklapanja posla]= \"Veljača\",PodaciOPotencijalnomKlijentu[Ponderirano Predviđanje],0),\"\"),\"\")","v":{"v":0,"d":"0 kn"}},{"$f":"IFERROR(IF(PodaciOPotencijalnomKlijentu[Predviđanje sklapanja posla] <>\"\",IF(PodaciOPotencijalnomKlijentu[Predviđanje sklapanja posla]= \"Ožujak\",PodaciOPotencijalnomKlijentu[Ponderirano Predviđanje],0),\"\"),\"\")","v":{"v":0,"d":"0 kn"}},{"$f":"IFERROR(IF(PodaciOPotencijalnomKlijentu[Predviđanje sklapanja posla] <>\"\",IF(PodaciOPotencijalnomKlijentu[Predviđanje sklapanja posla]= \"Travanj\",PodaciOPotencijalnomKlijentu[Ponderirano Predviđanje],0),\"\"),\"\")","v":{"v":0,"d":"0 kn"}},{"$f":"IFERROR(IF(PodaciOPotencijalnomKlijentu[Predviđanje sklapanja posla] <>\"\",IF(PodaciOPotencijalnomKlijentu[Predviđanje sklapanja posla]= \"Svibanj\",PodaciOPotencijalnomKlijentu[Ponderirano Predviđanje],0),\"\"),\"\")","v":{"v":0,"d":"0 kn"}},{"$f":"IFERROR(IF(PodaciOPotencijalnomKlijentu[Predviđanje sklapanja posla] <>\"\",IF(PodaciOPotencijalnomKlijentu[Predviđanje sklapanja posla]= \"Lipanj\",PodaciOPotencijalnomKlijentu[Ponderirano Predviđanje],0),\"\"),\"\")","v":{"v":0,"d":"0 kn"}},{"$f":"IFERROR(IF(PodaciOPotencijalnomKlijentu[Predviđanje sklapanja posla] <>\"\",IF(PodaciOPotencijalnomKlijentu[Predviđanje sklapanja posla]= \"Srpanj\",PodaciOPotencijalnomKlijentu[Ponderirano Predviđanje],0),\"\"),\"\")","v":{"v":0,"d":"0 kn"}},{"$f":"IFERROR(IF(PodaciOPotencijalnomKlijentu[Predviđanje sklapanja posla] <>\"\",IF(PodaciOPotencijalnomKlijentu[Predviđanje sklapanja posla]= \"Kolovoz\",PodaciOPotencijalnomKlijentu[Ponderirano Predviđanje],0),\"\"),\"\")","v":{"v":0,"d":"0 kn"}},{"$f":"IFERROR(IF(PodaciOPotencijalnomKlijentu[Predviđanje sklapanja posla] <>\"\",IF(PodaciOPotencijalnomKlijentu[Predviđanje sklapanja posla]= \"Rujan\",PodaciOPotencijalnomKlijentu[Ponderirano Predviđanje],0),\"\"),\"\")","v":{"v":0,"d":"0 kn"}},{"$f":"IFERROR(IF(PodaciOPotencijalnomKlijentu[Predviđanje sklapanja posla] <>\"\",IF(PodaciOPotencijalnomKlijentu[Predviđanje sklapanja posla]= \"Listopad\",PodaciOPotencijalnomKlijentu[Ponderirano Predviđanje],0),\"\"),\"\")","v":{"v":0,"d":"0 kn"}},{"$f":"IFERROR(IF(PodaciOPotencijalnomKlijentu[Predviđanje sklapanja posla] <>\"\",IF(PodaciOPotencijalnomKlijentu[Predviđanje sklapanja posla]= \"Studeni\",PodaciOPotencijalnomKlijentu[Ponderirano Predviđanje],0),\"\"),\"\")","v":{"v":0,"d":"0 kn"}},{"$f":"IFERROR(IF(PodaciOPotencijalnomKlijentu[Predviđanje sklapanja posla] <>\"\",IF(PodaciOPotencijalnomKlijentu[Predviđanje sklapanja posla]= \"Prosinac\",PodaciOPotencijalnomKlijentu[Ponderirano Predviđanje],0),\"\"),\"\")","v":{"v":0,"d":"0 kn"}}]
[null,{"$f":"IFERROR(IF(AND(PodaciOPotencijalnomKlijentu[Naziv potencijalnog klijenta] <> \"\", ROW(PredviđenaProdaja[Naziv potencijalnog klijenta])<>ZadnjiUnos),PodaciOPotencijalnomKlijentu[Naziv potencijalnog klijenta], \"\"),\"\")","v":"Adventure Works"},{"$f":"IFERROR(IF(PodaciOPotencijalnomKlijentu[Predviđanje sklapanja posla] <>\"\",IF(PodaciOPotencijalnomKlijentu[Predviđanje sklapanja posla]= \"Siječanj\",PodaciOPotencijalnomKlijentu[Ponderirano Predviđanje],0),\"\"),\"\")","v":{"v":0,"d":"0 kn"}},{"$f":"IFERROR(IF(PodaciOPotencijalnomKlijentu[Predviđanje sklapanja posla] <>\"\",IF(PodaciOPotencijalnomKlijentu[Predviđanje sklapanja posla]= \"Veljača\",PodaciOPotencijalnomKlijentu[Ponderirano Predviđanje],0),\"\"),\"\")","v":{"v":20000,"d":"20,000 kn"}},{"$f":"IFERROR(IF(PodaciOPotencijalnomKlijentu[Predviđanje sklapanja posla] <>\"\",IF(PodaciOPotencijalnomKlijentu[Predviđanje sklapanja posla]= \"Ožujak\",PodaciOPotencijalnomKlijentu[Ponderirano Predviđanje],0),\"\"),\"\")","v":{"v":0,"d":"0 kn"}},{"$f":"IFERROR(IF(PodaciOPotencijalnomKlijentu[Predviđanje sklapanja posla] <>\"\",IF(PodaciOPotencijalnomKlijentu[Predviđanje sklapanja posla]= \"Travanj\",PodaciOPotencijalnomKlijentu[Ponderirano Predviđanje],0),\"\"),\"\")","v":{"v":0,"d":"0 kn"}},{"$f":"IFERROR(IF(PodaciOPotencijalnomKlijentu[Predviđanje sklapanja posla] <>\"\",IF(PodaciOPotencijalnomKlijentu[Predviđanje sklapanja posla]= \"Svibanj\",PodaciOPotencijalnomKlijentu[Ponderirano Predviđanje],0),\"\"),\"\")","v":{"v":0,"d":"0 kn"}},{"$f":"IFERROR(IF(PodaciOPotencijalnomKlijentu[Predviđanje sklapanja posla] <>\"\",IF(PodaciOPotencijalnomKlijentu[Predviđanje sklapanja posla]= \"Lipanj\",PodaciOPotencijalnomKlijentu[Ponderirano Predviđanje],0),\"\"),\"\")","v":{"v":0,"d":"0 kn"}},{"$f":"IFERROR(IF(PodaciOPotencijalnomKlijentu[Predviđanje sklapanja posla] <>\"\",IF(PodaciOPotencijalnomKlijentu[Predviđanje sklapanja posla]= \"Srpanj\",PodaciOPotencijalnomKlijentu[Ponderirano Predviđanje],0),\"\"),\"\")","v":{"v":0,"d":"0 kn"}},{"$f":"IFERROR(IF(PodaciOPotencijalnomKlijentu[Predviđanje sklapanja posla] <>\"\",IF(PodaciOPotencijalnomKlijentu[Predviđanje sklapanja posla]= \"Kolovoz\",PodaciOPotencijalnomKlijentu[Ponderirano Predviđanje],0),\"\"),\"\")","v":{"v":0,"d":"0 kn"}},{"$f":"IFERROR(IF(PodaciOPotencijalnomKlijentu[Predviđanje sklapanja posla] <>\"\",IF(PodaciOPotencijalnomKlijentu[Predviđanje sklapanja posla]= \"Rujan\",PodaciOPotencijalnomKlijentu[Ponderirano Predviđanje],0),\"\"),\"\")","v":{"v":0,"d":"0 kn"}},{"$f":"IFERROR(IF(PodaciOPotencijalnomKlijentu[Predviđanje sklapanja posla] <>\"\",IF(PodaciOPotencijalnomKlijentu[Predviđanje sklapanja posla]= \"Listopad\",PodaciOPotencijalnomKlijentu[Ponderirano Predviđanje],0),\"\"),\"\")","v":{"v":0,"d":"0 kn"}},{"$f":"IFERROR(IF(PodaciOPotencijalnomKlijentu[Predviđanje sklapanja posla] <>\"\",IF(PodaciOPotencijalnomKlijentu[Predviđanje sklapanja posla]= \"Studeni\",PodaciOPotencijalnomKlijentu[Ponderirano Predviđanje],0),\"\"),\"\")","v":{"v":0,"d":"0 kn"}},{"$f":"IFERROR(IF(PodaciOPotencijalnomKlijentu[Predviđanje sklapanja posla] <>\"\",IF(PodaciOPotencijalnomKlijentu[Predviđanje sklapanja posla]= \"Prosinac\",PodaciOPotencijalnomKlijentu[Ponderirano Predviđanje],0),\"\"),\"\")","v":{"v":0,"d":"0 kn"}}]
[null,{"$f":"IFERROR(IF(AND(PodaciOPotencijalnomKlijentu[Naziv potencijalnog klijenta] <> \"\", ROW(PredviđenaProdaja[Naziv potencijalnog klijenta])<>ZadnjiUnos),PodaciOPotencijalnomKlijentu[Naziv potencijalnog klijenta], \"\"),\"\")","v":"Alpine Ski House"},{"$f":"IFERROR(IF(PodaciOPotencijalnomKlijentu[Predviđanje sklapanja posla] <>\"\",IF(PodaciOPotencijalnomKlijentu[Predviđanje sklapanja posla]= \"Siječanj\",PodaciOPotencijalnomKlijentu[Ponderirano Predviđanje],0),\"\"),\"\")","v":{"v":0,"d":"0 kn"}},{"$f":"IFERROR(IF(PodaciOPotencijalnomKlijentu[Predviđanje sklapanja posla] <>\"\",IF(PodaciOPotencijalnomKlijentu[Predviđanje sklapanja posla]= \"Veljača\",PodaciOPotencijalnomKlijentu[Ponderirano Predviđanje],0),\"\"),\"\")","v":{"v":0,"d":"0 kn"}},{"$f":"IFERROR(IF(PodaciOPotencijalnomKlijentu[Predviđanje sklapanja posla] <>\"\",IF(PodaciOPotencijalnomKlijentu[Predviđanje sklapanja posla]= \"Ožujak\",PodaciOPotencijalnomKlijentu[Ponderirano Predviđanje],0),\"\"),\"\")","v":{"v":20000,"d":"20,000 kn"}},{"$f":"IFERROR(IF(PodaciOPotencijalnomKlijentu[Predviđanje sklapanja posla] <>\"\",IF(PodaciOPotencijalnomKlijentu[Predviđanje sklapanja posla]= \"Travanj\",PodaciOPotencijalnomKlijentu[Ponderirano Predviđanje],0),\"\"),\"\")","v":{"v":0,"d":"0 kn"}},{"$f":"IFERROR(IF(PodaciOPotencijalnomKlijentu[Predviđanje sklapanja posla] <>\"\",IF(PodaciOPotencijalnomKlijentu[Predviđanje sklapanja posla]= \"Svibanj\",PodaciOPotencijalnomKlijentu[Ponderirano Predviđanje],0),\"\"),\"\")","v":{"v":0,"d":"0 kn"}},{"$f":"IFERROR(IF(PodaciOPotencijalnomKlijentu[Predviđanje sklapanja posla] <>\"\",IF(PodaciOPotencijalnomKlijentu[Predviđanje sklapanja posla]= \"Lipanj\",PodaciOPotencijalnomKlijentu[Ponderirano Predviđanje],0),\"\"),\"\")","v":{"v":0,"d":"0 kn"}},{"$f":"IFERROR(IF(PodaciOPotencijalnomKlijentu[Predviđanje sklapanja posla] <>\"\",IF(PodaciOPotencijalnomKlijentu[Predviđanje sklapanja posla]= \"Srpanj\",PodaciOPotencijalnomKlijentu[Ponderirano Predviđanje],0),\"\"),\"\")","v":{"v":0,"d":"0 kn"}},{"$f":"IFERROR(IF(PodaciOPotencijalnomKlijentu[Predviđanje sklapanja posla] <>\"\",IF(PodaciOPotencijalnomKlijentu[Predviđanje sklapanja posla]= \"Kolovoz\",PodaciOPotencijalnomKlijentu[Ponderirano Predviđanje],0),\"\"),\"\")","v":{"v":0,"d":"0 kn"}},{"$f":"IFERROR(IF(PodaciOPotencijalnomKlijentu[Predviđanje sklapanja posla] <>\"\",IF(PodaciOPotencijalnomKlijentu[Predviđanje sklapanja posla]= \"Rujan\",PodaciOPotencijalnomKlijentu[Ponderirano Predviđanje],0),\"\"),\"\")","v":{"v":0,"d":"0 kn"}},{"$f":"IFERROR(IF(PodaciOPotencijalnomKlijentu[Predviđanje sklapanja posla] <>\"\",IF(PodaciOPotencijalnomKlijentu[Predviđanje sklapanja posla]= \"Listopad\",PodaciOPotencijalnomKlijentu[Ponderirano Predviđanje],0),\"\"),\"\")","v":{"v":0,"d":"0 kn"}},{"$f":"IFERROR(IF(PodaciOPotencijalnomKlijentu[Predviđanje sklapanja posla] <>\"\",IF(PodaciOPotencijalnomKlijentu[Predviđanje sklapanja posla]= \"Studeni\",PodaciOPotencijalnomKlijentu[Ponderirano Predviđanje],0),\"\"),\"\")","v":{"v":0,"d":"0 kn"}},{"$f":"IFERROR(IF(PodaciOPotencijalnomKlijentu[Predviđanje sklapanja posla] <>\"\",IF(PodaciOPotencijalnomKlijentu[Predviđanje sklapanja posla]= \"Prosinac\",PodaciOPotencijalnomKlijentu[Ponderirano Predviđanje],0),\"\"),\"\")","v":{"v":0,"d":"0 kn"}}]
[null,{"$f":"IFERROR(IF(AND(PodaciOPotencijalnomKlijentu[Naziv potencijalnog klijenta] <> \"\", ROW(PredviđenaProdaja[Naziv potencijalnog klijenta])<>ZadnjiUnos),PodaciOPotencijalnomKlijentu[Naziv potencijalnog klijenta], \"\"),\"\")","v":""},{"$f":"IFERROR(IF(PodaciOPotencijalnomKlijentu[Predviđanje sklapanja posla] <>\"\",IF(PodaciOPotencijalnomKlijentu[Predviđanje sklapanja posla]= \"Siječanj\",PodaciOPotencijalnomKlijentu[Ponderirano Predviđanje],0),\"\"),\"\")","v":""},{"$f":"IFERROR(IF(PodaciOPotencijalnomKlijentu[Predviđanje sklapanja posla] <>\"\",IF(PodaciOPotencijalnomKlijentu[Predviđanje sklapanja posla]= \"Veljača\",PodaciOPotencijalnomKlijentu[Ponderirano Predviđanje],0),\"\"),\"\")","v":""},{"$f":"IFERROR(IF(PodaciOPotencijalnomKlijentu[Predviđanje sklapanja posla] <>\"\",IF(PodaciOPotencijalnomKlijentu[Predviđanje sklapanja posla]= \"Ožujak\",PodaciOPotencijalnomKlijentu[Ponderirano Predviđanje],0),\"\"),\"\")","v":""},{"$f":"IFERROR(IF(PodaciOPotencijalnomKlijentu[Predviđanje sklapanja posla] <>\"\",IF(PodaciOPotencijalnomKlijentu[Predviđanje sklapanja posla]= \"Travanj\",PodaciOPotencijalnomKlijentu[Ponderirano Predviđanje],0),\"\"),\"\")","v":""},{"$f":"IFERROR(IF(PodaciOPotencijalnomKlijentu[Predviđanje sklapanja posla] <>\"\",IF(PodaciOPotencijalnomKlijentu[Predviđanje sklapanja posla]= \"Svibanj\",PodaciOPotencijalnomKlijentu[Ponderirano Predviđanje],0),\"\"),\"\")","v":""},{"$f":"IFERROR(IF(PodaciOPotencijalnomKlijentu[Predviđanje sklapanja posla] <>\"\",IF(PodaciOPotencijalnomKlijentu[Predviđanje sklapanja posla]= \"Lipanj\",PodaciOPotencijalnomKlijentu[Ponderirano Predviđanje],0),\"\"),\"\")","v":""},{"$f":"IFERROR(IF(PodaciOPotencijalnomKlijentu[Predviđanje sklapanja posla] <>\"\",IF(PodaciOPotencijalnomKlijentu[Predviđanje sklapanja posla]= \"Srpanj\",PodaciOPotencijalnomKlijentu[Ponderirano Predviđanje],0),\"\"),\"\")","v":""},{"$f":"IFERROR(IF(PodaciOPotencijalnomKlijentu[Predviđanje sklapanja posla] <>\"\",IF(PodaciOPotencijalnomKlijentu[Predviđanje sklapanja posla]= \"Kolovoz\",PodaciOPotencijalnomKlijentu[Ponderirano Predviđanje],0),\"\"),\"\")","v":""},{"$f":"IFERROR(IF(PodaciOPotencijalnomKlijentu[Predviđanje sklapanja posla] <>\"\",IF(PodaciOPotencijalnomKlijentu[Predviđanje sklapanja posla]= \"Rujan\",PodaciOPotencijalnomKlijentu[Ponderirano Predviđanje],0),\"\"),\"\")","v":""},{"$f":"IFERROR(IF(PodaciOPotencijalnomKlijentu[Predviđanje sklapanja posla] <>\"\",IF(PodaciOPotencijalnomKlijentu[Predviđanje sklapanja posla]= \"Listopad\",PodaciOPotencijalnomKlijentu[Ponderirano Predviđanje],0),\"\"),\"\")","v":""},{"$f":"IFERROR(IF(PodaciOPotencijalnomKlijentu[Predviđanje sklapanja posla] <>\"\",IF(PodaciOPotencijalnomKlijentu[Predviđanje sklapanja posla]= \"Studeni\",PodaciOPotencijalnomKlijentu[Ponderirano Predviđanje],0),\"\"),\"\")","v":""},{"$f":"IFERROR(IF(PodaciOPotencijalnomKlijentu[Predviđanje sklapanja posla] <>\"\",IF(PodaciOPotencijalnomKlijentu[Predviđanje sklapanja posla]= \"Prosinac\",PodaciOPotencijalnomKlijentu[Ponderirano Predviđanje],0),\"\"),\"\")","v":""}]
[null,{"$f":"IFERROR(IF(AND(PodaciOPotencijalnomKlijentu[Naziv potencijalnog klijenta] <> \"\", ROW(PredviđenaProdaja[Naziv potencijalnog klijenta])<>ZadnjiUnos),PodaciOPotencijalnomKlijentu[Naziv potencijalnog klijenta], \"\"),\"\")","v":""},{"$f":"IFERROR(IF(PodaciOPotencijalnomKlijentu[Predviđanje sklapanja posla] <>\"\",IF(PodaciOPotencijalnomKlijentu[Predviđanje sklapanja posla]= \"Siječanj\",PodaciOPotencijalnomKlijentu[Ponderirano Predviđanje],0),\"\"),\"\")","v":""},{"$f":"IFERROR(IF(PodaciOPotencijalnomKlijentu[Predviđanje sklapanja posla] <>\"\",IF(PodaciOPotencijalnomKlijentu[Predviđanje sklapanja posla]= \"Veljača\",PodaciOPotencijalnomKlijentu[Ponderirano Predviđanje],0),\"\"),\"\")","v":""},{"$f":"IFERROR(IF(PodaciOPotencijalnomKlijentu[Predviđanje sklapanja posla] <>\"\",IF(PodaciOPotencijalnomKlijentu[Predviđanje sklapanja posla]= \"Ožujak\",PodaciOPotencijalnomKlijentu[Ponderirano Predviđanje],0),\"\"),\"\")","v":""},{"$f":"IFERROR(IF(PodaciOPotencijalnomKlijentu[Predviđanje sklapanja posla] <>\"\",IF(PodaciOPotencijalnomKlijentu[Predviđanje sklapanja posla]= \"Travanj\",PodaciOPotencijalnomKlijentu[Ponderirano Predviđanje],0),\"\"),\"\")","v":""},{"$f":"IFERROR(IF(PodaciOPotencijalnomKlijentu[Predviđanje sklapanja posla] <>\"\",IF(PodaciOPotencijalnomKlijentu[Predviđanje sklapanja posla]= \"Svibanj\",PodaciOPotencijalnomKlijentu[Ponderirano Predviđanje],0),\"\"),\"\")","v":""},{"$f":"IFERROR(IF(PodaciOPotencijalnomKlijentu[Predviđanje sklapanja posla] <>\"\",IF(PodaciOPotencijalnomKlijentu[Predviđanje sklapanja posla]= \"Lipanj\",PodaciOPotencijalnomKlijentu[Ponderirano Predviđanje],0),\"\"),\"\")","v":""},{"$f":"IFERROR(IF(PodaciOPotencijalnomKlijentu[Predviđanje sklapanja posla] <>\"\",IF(PodaciOPotencijalnomKlijentu[Predviđanje sklapanja posla]= \"Srpanj\",PodaciOPotencijalnomKlijentu[Ponderirano Predviđanje],0),\"\"),\"\")","v":""},{"$f":"IFERROR(IF(PodaciOPotencijalnomKlijentu[Predviđanje sklapanja posla] <>\"\",IF(PodaciOPotencijalnomKlijentu[Predviđanje sklapanja posla]= \"Kolovoz\",PodaciOPotencijalnomKlijentu[Ponderirano Predviđanje],0),\"\"),\"\")","v":""},{"$f":"IFERROR(IF(PodaciOPotencijalnomKlijentu[Predviđanje sklapanja posla] <>\"\",IF(PodaciOPotencijalnomKlijentu[Predviđanje sklapanja posla]= \"Rujan\",PodaciOPotencijalnomKlijentu[Ponderirano Predviđanje],0),\"\"),\"\")","v":""},{"$f":"IFERROR(IF(PodaciOPotencijalnomKlijentu[Predviđanje sklapanja posla] <>\"\",IF(PodaciOPotencijalnomKlijentu[Predviđanje sklapanja posla]= \"Listopad\",PodaciOPotencijalnomKlijentu[Ponderirano Predviđanje],0),\"\"),\"\")","v":""},{"$f":"IFERROR(IF(PodaciOPotencijalnomKlijentu[Predviđanje sklapanja posla] <>\"\",IF(PodaciOPotencijalnomKlijentu[Predviđanje sklapanja posla]= \"Studeni\",PodaciOPotencijalnomKlijentu[Ponderirano Predviđanje],0),\"\"),\"\")","v":""},{"$f":"IFERROR(IF(PodaciOPotencijalnomKlijentu[Predviđanje sklapanja posla] <>\"\",IF(PodaciOPotencijalnomKlijentu[Predviđanje sklapanja posla]= \"Prosinac\",PodaciOPotencijalnomKlijentu[Ponderirano Predviđanje],0),\"\"),\"\")","v":""}]
[null,{"$f":"IFERROR(IF(AND(PodaciOPotencijalnomKlijentu[Naziv potencijalnog klijenta] <> \"\", ROW(PredviđenaProdaja[Naziv potencijalnog klijenta])<>ZadnjiUnos),PodaciOPotencijalnomKlijentu[Naziv potencijalnog klijenta], \"\"),\"\")","v":""},{"$f":"IFERROR(IF(PodaciOPotencijalnomKlijentu[Predviđanje sklapanja posla] <>\"\",IF(PodaciOPotencijalnomKlijentu[Predviđanje sklapanja posla]= \"Siječanj\",PodaciOPotencijalnomKlijentu[Ponderirano Predviđanje],0),\"\"),\"\")","v":""},{"$f":"IFERROR(IF(PodaciOPotencijalnomKlijentu[Predviđanje sklapanja posla] <>\"\",IF(PodaciOPotencijalnomKlijentu[Predviđanje sklapanja posla]= \"Veljača\",PodaciOPotencijalnomKlijentu[Ponderirano Predviđanje],0),\"\"),\"\")","v":""},{"$f":"IFERROR(IF(PodaciOPotencijalnomKlijentu[Predviđanje sklapanja posla] <>\"\",IF(PodaciOPotencijalnomKlijentu[Predviđanje sklapanja posla]= \"Ožujak\",PodaciOPotencijalnomKlijentu[Ponderirano Predviđanje],0),\"\"),\"\")","v":""},{"$f":"IFERROR(IF(PodaciOPotencijalnomKlijentu[Predviđanje sklapanja posla] <>\"\",IF(PodaciOPotencijalnomKlijentu[Predviđanje sklapanja posla]= \"Travanj\",PodaciOPotencijalnomKlijentu[Ponderirano Predviđanje],0),\"\"),\"\")","v":""},{"$f":"IFERROR(IF(PodaciOPotencijalnomKlijentu[Predviđanje sklapanja posla] <>\"\",IF(PodaciOPotencijalnomKlijentu[Predviđanje sklapanja posla]= \"Svibanj\",PodaciOPotencijalnomKlijentu[Ponderirano Predviđanje],0),\"\"),\"\")","v":""},{"$f":"IFERROR(IF(PodaciOPotencijalnomKlijentu[Predviđanje sklapanja posla] <>\"\",IF(PodaciOPotencijalnomKlijentu[Predviđanje sklapanja posla]= \"Lipanj\",PodaciOPotencijalnomKlijentu[Ponderirano Predviđanje],0),\"\"),\"\")","v":""},{"$f":"IFERROR(IF(PodaciOPotencijalnomKlijentu[Predviđanje sklapanja posla] <>\"\",IF(PodaciOPotencijalnomKlijentu[Predviđanje sklapanja posla]= \"Srpanj\",PodaciOPotencijalnomKlijentu[Ponderirano Predviđanje],0),\"\"),\"\")","v":""},{"$f":"IFERROR(IF(PodaciOPotencijalnomKlijentu[Predviđanje sklapanja posla] <>\"\",IF(PodaciOPotencijalnomKlijentu[Predviđanje sklapanja posla]= \"Kolovoz\",PodaciOPotencijalnomKlijentu[Ponderirano Predviđanje],0),\"\"),\"\")","v":""},{"$f":"IFERROR(IF(PodaciOPotencijalnomKlijentu[Predviđanje sklapanja posla] <>\"\",IF(PodaciOPotencijalnomKlijentu[Predviđanje sklapanja posla]= \"Rujan\",PodaciOPotencijalnomKlijentu[Ponderirano Predviđanje],0),\"\"),\"\")","v":""},{"$f":"IFERROR(IF(PodaciOPotencijalnomKlijentu[Predviđanje sklapanja posla] <>\"\",IF(PodaciOPotencijalnomKlijentu[Predviđanje sklapanja posla]= \"Listopad\",PodaciOPotencijalnomKlijentu[Ponderirano Predviđanje],0),\"\"),\"\")","v":""},{"$f":"IFERROR(IF(PodaciOPotencijalnomKlijentu[Predviđanje sklapanja posla] <>\"\",IF(PodaciOPotencijalnomKlijentu[Predviđanje sklapanja posla]= \"Studeni\",PodaciOPotencijalnomKlijentu[Ponderirano Predviđanje],0),\"\"),\"\")","v":""},{"$f":"IFERROR(IF(PodaciOPotencijalnomKlijentu[Predviđanje sklapanja posla] <>\"\",IF(PodaciOPotencijalnomKlijentu[Predviđanje sklapanja posla]= \"Prosinac\",PodaciOPotencijalnomKlijentu[Ponderirano Predviđanje],0),\"\"),\"\")","v":""}]
[null,{"$f":"IFERROR(IF(AND(PodaciOPotencijalnomKlijentu[Naziv potencijalnog klijenta] <> \"\", ROW(PredviđenaProdaja[Naziv potencijalnog klijenta])<>ZadnjiUnos),PodaciOPotencijalnomKlijentu[Naziv potencijalnog klijenta], \"\"),\"\")","v":""},{"$f":"IFERROR(IF(PodaciOPotencijalnomKlijentu[Predviđanje sklapanja posla] <>\"\",IF(PodaciOPotencijalnomKlijentu[Predviđanje sklapanja posla]= \"Siječanj\",PodaciOPotencijalnomKlijentu[Ponderirano Predviđanje],0),\"\"),\"\")","v":""},{"$f":"IFERROR(IF(PodaciOPotencijalnomKlijentu[Predviđanje sklapanja posla] <>\"\",IF(PodaciOPotencijalnomKlijentu[Predviđanje sklapanja posla]= \"Veljača\",PodaciOPotencijalnomKlijentu[Ponderirano Predviđanje],0),\"\"),\"\")","v":""},{"$f":"IFERROR(IF(PodaciOPotencijalnomKlijentu[Predviđanje sklapanja posla] <>\"\",IF(PodaciOPotencijalnomKlijentu[Predviđanje sklapanja posla]= \"Ožujak\",PodaciOPotencijalnomKlijentu[Ponderirano Predviđanje],0),\"\"),\"\")","v":""},{"$f":"IFERROR(IF(PodaciOPotencijalnomKlijentu[Predviđanje sklapanja posla] <>\"\",IF(PodaciOPotencijalnomKlijentu[Predviđanje sklapanja posla]= \"Travanj\",PodaciOPotencijalnomKlijentu[Ponderirano Predviđanje],0),\"\"),\"\")","v":""},{"$f":"IFERROR(IF(PodaciOPotencijalnomKlijentu[Predviđanje sklapanja posla] <>\"\",IF(PodaciOPotencijalnomKlijentu[Predviđanje sklapanja posla]= \"Svibanj\",PodaciOPotencijalnomKlijentu[Ponderirano Predviđanje],0),\"\"),\"\")","v":""},{"$f":"IFERROR(IF(PodaciOPotencijalnomKlijentu[Predviđanje sklapanja posla] <>\"\",IF(PodaciOPotencijalnomKlijentu[Predviđanje sklapanja posla]= \"Lipanj\",PodaciOPotencijalnomKlijentu[Ponderirano Predviđanje],0),\"\"),\"\")","v":""},{"$f":"IFERROR(IF(PodaciOPotencijalnomKlijentu[Predviđanje sklapanja posla] <>\"\",IF(PodaciOPotencijalnomKlijentu[Predviđanje sklapanja posla]= \"Srpanj\",PodaciOPotencijalnomKlijentu[Ponderirano Predviđanje],0),\"\"),\"\")","v":""},{"$f":"IFERROR(IF(PodaciOPotencijalnomKlijentu[Predviđanje sklapanja posla] <>\"\",IF(PodaciOPotencijalnomKlijentu[Predviđanje sklapanja posla]= \"Kolovoz\",PodaciOPotencijalnomKlijentu[Ponderirano Predviđanje],0),\"\"),\"\")","v":""},{"$f":"IFERROR(IF(PodaciOPotencijalnomKlijentu[Predviđanje sklapanja posla] <>\"\",IF(PodaciOPotencijalnomKlijentu[Predviđanje sklapanja posla]= \"Rujan\",PodaciOPotencijalnomKlijentu[Ponderirano Predviđanje],0),\"\"),\"\")","v":""},{"$f":"IFERROR(IF(PodaciOPotencijalnomKlijentu[Predviđanje sklapanja posla] <>\"\",IF(PodaciOPotencijalnomKlijentu[Predviđanje sklapanja posla]= \"Listopad\",PodaciOPotencijalnomKlijentu[Ponderirano Predviđanje],0),\"\"),\"\")","v":""},{"$f":"IFERROR(IF(PodaciOPotencijalnomKlijentu[Predviđanje sklapanja posla] <>\"\",IF(PodaciOPotencijalnomKlijentu[Predviđanje sklapanja posla]= \"Studeni\",PodaciOPotencijalnomKlijentu[Ponderirano Predviđanje],0),\"\"),\"\")","v":""},{"$f":"IFERROR(IF(PodaciOPotencijalnomKlijentu[Predviđanje sklapanja posla] <>\"\",IF(PodaciOPotencijalnomKlijentu[Predviđanje sklapanja posla]= \"Prosinac\",PodaciOPotencijalnomKlijentu[Ponderirano Predviđanje],0),\"\"),\"\")","v":""}]
[null,{"$f":"IFERROR(IF(AND(PodaciOPotencijalnomKlijentu[Naziv potencijalnog klijenta] <> \"\", ROW(PredviđenaProdaja[Naziv potencijalnog klijenta])<>ZadnjiUnos),PodaciOPotencijalnomKlijentu[Naziv potencijalnog klijenta], \"\"),\"\")","v":""},{"$f":"IFERROR(IF(PodaciOPotencijalnomKlijentu[Predviđanje sklapanja posla] <>\"\",IF(PodaciOPotencijalnomKlijentu[Predviđanje sklapanja posla]= \"Siječanj\",PodaciOPotencijalnomKlijentu[Ponderirano Predviđanje],0),\"\"),\"\")","v":""},{"$f":"IFERROR(IF(PodaciOPotencijalnomKlijentu[Predviđanje sklapanja posla] <>\"\",IF(PodaciOPotencijalnomKlijentu[Predviđanje sklapanja posla]= \"Veljača\",PodaciOPotencijalnomKlijentu[Ponderirano Predviđanje],0),\"\"),\"\")","v":""},{"$f":"IFERROR(IF(PodaciOPotencijalnomKlijentu[Predviđanje sklapanja posla] <>\"\",IF(PodaciOPotencijalnomKlijentu[Predviđanje sklapanja posla]= \"Ožujak\",PodaciOPotencijalnomKlijentu[Ponderirano Predviđanje],0),\"\"),\"\")","v":""},{"$f":"IFERROR(IF(PodaciOPotencijalnomKlijentu[Predviđanje sklapanja posla] <>\"\",IF(PodaciOPotencijalnomKlijentu[Predviđanje sklapanja posla]= \"Travanj\",PodaciOPotencijalnomKlijentu[Ponderirano Predviđanje],0),\"\"),\"\")","v":""},{"$f":"IFERROR(IF(PodaciOPotencijalnomKlijentu[Predviđanje sklapanja posla] <>\"\",IF(PodaciOPotencijalnomKlijentu[Predviđanje sklapanja posla]= \"Svibanj\",PodaciOPotencijalnomKlijentu[Ponderirano Predviđanje],0),\"\"),\"\")","v":""},{"$f":"IFERROR(IF(PodaciOPotencijalnomKlijentu[Predviđanje sklapanja posla] <>\"\",IF(PodaciOPotencijalnomKlijentu[Predviđanje sklapanja posla]= \"Lipanj\",PodaciOPotencijalnomKlijentu[Ponderirano Predviđanje],0),\"\"),\"\")","v":""},{"$f":"IFERROR(IF(PodaciOPotencijalnomKlijentu[Predviđanje sklapanja posla] <>\"\",IF(PodaciOPotencijalnomKlijentu[Predviđanje sklapanja posla]= \"Srpanj\",PodaciOPotencijalnomKlijentu[Ponderirano Predviđanje],0),\"\"),\"\")","v":""},{"$f":"IFERROR(IF(PodaciOPotencijalnomKlijentu[Predviđanje sklapanja posla] <>\"\",IF(PodaciOPotencijalnomKlijentu[Predviđanje sklapanja posla]= \"Kolovoz\",PodaciOPotencijalnomKlijentu[Ponderirano Predviđanje],0),\"\"),\"\")","v":""},{"$f":"IFERROR(IF(PodaciOPotencijalnomKlijentu[Predviđanje sklapanja posla] <>\"\",IF(PodaciOPotencijalnomKlijentu[Predviđanje sklapanja posla]= \"Rujan\",PodaciOPotencijalnomKlijentu[Ponderirano Predviđanje],0),\"\"),\"\")","v":""},{"$f":"IFERROR(IF(PodaciOPotencijalnomKlijentu[Predviđanje sklapanja posla] <>\"\",IF(PodaciOPotencijalnomKlijentu[Predviđanje sklapanja posla]= \"Listopad\",PodaciOPotencijalnomKlijentu[Ponderirano Predviđanje],0),\"\"),\"\")","v":""},{"$f":"IFERROR(IF(PodaciOPotencijalnomKlijentu[Predviđanje sklapanja posla] <>\"\",IF(PodaciOPotencijalnomKlijentu[Predviđanje sklapanja posla]= \"Studeni\",PodaciOPotencijalnomKlijentu[Ponderirano Predviđanje],0),\"\"),\"\")","v":""},{"$f":"IFERROR(IF(PodaciOPotencijalnomKlijentu[Predviđanje sklapanja posla] <>\"\",IF(PodaciOPotencijalnomKlijentu[Predviđanje sklapanja posla]= \"Prosinac\",PodaciOPotencijalnomKlijentu[Ponderirano Predviđanje],0),\"\"),\"\")","v":""}]
[null,{"$f":"IFERROR(IF(AND(PodaciOPotencijalnomKlijentu[Naziv potencijalnog klijenta] <> \"\", ROW(PredviđenaProdaja[Naziv potencijalnog klijenta])<>ZadnjiUnos),PodaciOPotencijalnomKlijentu[Naziv potencijalnog klijenta], \"\"),\"\")","v":""},{"$f":"IFERROR(IF(PodaciOPotencijalnomKlijentu[Predviđanje sklapanja posla] <>\"\",IF(PodaciOPotencijalnomKlijentu[Predviđanje sklapanja posla]= \"Siječanj\",PodaciOPotencijalnomKlijentu[Ponderirano Predviđanje],0),\"\"),\"\")","v":""},{"$f":"IFERROR(IF(PodaciOPotencijalnomKlijentu[Predviđanje sklapanja posla] <>\"\",IF(PodaciOPotencijalnomKlijentu[Predviđanje sklapanja posla]= \"Veljača\",PodaciOPotencijalnomKlijentu[Ponderirano Predviđanje],0),\"\"),\"\")","v":""},{"$f":"IFERROR(IF(PodaciOPotencijalnomKlijentu[Predviđanje sklapanja posla] <>\"\",IF(PodaciOPotencijalnomKlijentu[Predviđanje sklapanja posla]= \"Ožujak\",PodaciOPotencijalnomKlijentu[Ponderirano Predviđanje],0),\"\"),\"\")","v":""},{"$f":"IFERROR(IF(PodaciOPotencijalnomKlijentu[Predviđanje sklapanja posla] <>\"\",IF(PodaciOPotencijalnomKlijentu[Predviđanje sklapanja posla]= \"Travanj\",PodaciOPotencijalnomKlijentu[Ponderirano Predviđanje],0),\"\"),\"\")","v":""},{"$f":"IFERROR(IF(PodaciOPotencijalnomKlijentu[Predviđanje sklapanja posla] <>\"\",IF(PodaciOPotencijalnomKlijentu[Predviđanje sklapanja posla]= \"Svibanj\",PodaciOPotencijalnomKlijentu[Ponderirano Predviđanje],0),\"\"),\"\")","v":""},{"$f":"IFERROR(IF(PodaciOPotencijalnomKlijentu[Predviđanje sklapanja posla] <>\"\",IF(PodaciOPotencijalnomKlijentu[Predviđanje sklapanja posla]= \"Lipanj\",PodaciOPotencijalnomKlijentu[Ponderirano Predviđanje],0),\"\"),\"\")","v":""},{"$f":"IFERROR(IF(PodaciOPotencijalnomKlijentu[Predviđanje sklapanja posla] <>\"\",IF(PodaciOPotencijalnomKlijentu[Predviđanje sklapanja posla]= \"Srpanj\",PodaciOPotencijalnomKlijentu[Ponderirano Predviđanje],0),\"\"),\"\")","v":""},{"$f":"IFERROR(IF(PodaciOPotencijalnomKlijentu[Predviđanje sklapanja posla] <>\"\",IF(PodaciOPotencijalnomKlijentu[Predviđanje sklapanja posla]= \"Kolovoz\",PodaciOPotencijalnomKlijentu[Ponderirano Predviđanje],0),\"\"),\"\")","v":""},{"$f":"IFERROR(IF(PodaciOPotencijalnomKlijentu[Predviđanje sklapanja posla] <>\"\",IF(PodaciOPotencijalnomKlijentu[Predviđanje sklapanja posla]= \"Rujan\",PodaciOPotencijalnomKlijentu[Ponderirano Predviđanje],0),\"\"),\"\")","v":""},{"$f":"IFERROR(IF(PodaciOPotencijalnomKlijentu[Predviđanje sklapanja posla] <>\"\",IF(PodaciOPotencijalnomKlijentu[Predviđanje sklapanja posla]= \"Listopad\",PodaciOPotencijalnomKlijentu[Ponderirano Predviđanje],0),\"\"),\"\")","v":""},{"$f":"IFERROR(IF(PodaciOPotencijalnomKlijentu[Predviđanje sklapanja posla] <>\"\",IF(PodaciOPotencijalnomKlijentu[Predviđanje sklapanja posla]= \"Studeni\",PodaciOPotencijalnomKlijentu[Ponderirano Predviđanje],0),\"\"),\"\")","v":""},{"$f":"IFERROR(IF(PodaciOPotencijalnomKlijentu[Predviđanje sklapanja posla] <>\"\",IF(PodaciOPotencijalnomKlijentu[Predviđanje sklapanja posla]= \"Prosinac\",PodaciOPotencijalnomKlijentu[Ponderirano Predviđanje],0),\"\"),\"\")","v":""}]
[null,{"$f":"IFERROR(IF(AND(PodaciOPotencijalnomKlijentu[Naziv potencijalnog klijenta] <> \"\", ROW(PredviđenaProdaja[Naziv potencijalnog klijenta])<>ZadnjiUnos),PodaciOPotencijalnomKlijentu[Naziv potencijalnog klijenta], \"\"),\"\")","v":""},{"$f":"IFERROR(IF(PodaciOPotencijalnomKlijentu[Predviđanje sklapanja posla] <>\"\",IF(PodaciOPotencijalnomKlijentu[Predviđanje sklapanja posla]= \"Siječanj\",PodaciOPotencijalnomKlijentu[Ponderirano Predviđanje],0),\"\"),\"\")","v":""},{"$f":"IFERROR(IF(PodaciOPotencijalnomKlijentu[Predviđanje sklapanja posla] <>\"\",IF(PodaciOPotencijalnomKlijentu[Predviđanje sklapanja posla]= \"Veljača\",PodaciOPotencijalnomKlijentu[Ponderirano Predviđanje],0),\"\"),\"\")","v":""},{"$f":"IFERROR(IF(PodaciOPotencijalnomKlijentu[Predviđanje sklapanja posla] <>\"\",IF(PodaciOPotencijalnomKlijentu[Predviđanje sklapanja posla]= \"Ožujak\",PodaciOPotencijalnomKlijentu[Ponderirano Predviđanje],0),\"\"),\"\")","v":""},{"$f":"IFERROR(IF(PodaciOPotencijalnomKlijentu[Predviđanje sklapanja posla] <>\"\",IF(PodaciOPotencijalnomKlijentu[Predviđanje sklapanja posla]= \"Travanj\",PodaciOPotencijalnomKlijentu[Ponderirano Predviđanje],0),\"\"),\"\")","v":""},{"$f":"IFERROR(IF(PodaciOPotencijalnomKlijentu[Predviđanje sklapanja posla] <>\"\",IF(PodaciOPotencijalnomKlijentu[Predviđanje sklapanja posla]= \"Svibanj\",PodaciOPotencijalnomKlijentu[Ponderirano Predviđanje],0),\"\"),\"\")","v":""},{"$f":"IFERROR(IF(PodaciOPotencijalnomKlijentu[Predviđanje sklapanja posla] <>\"\",IF(PodaciOPotencijalnomKlijentu[Predviđanje sklapanja posla]= \"Lipanj\",PodaciOPotencijalnomKlijentu[Ponderirano Predviđanje],0),\"\"),\"\")","v":""},{"$f":"IFERROR(IF(PodaciOPotencijalnomKlijentu[Predviđanje sklapanja posla] <>\"\",IF(PodaciOPotencijalnomKlijentu[Predviđanje sklapanja posla]= \"Srpanj\",PodaciOPotencijalnomKlijentu[Ponderirano Predviđanje],0),\"\"),\"\")","v":""},{"$f":"IFERROR(IF(PodaciOPotencijalnomKlijentu[Predviđanje sklapanja posla] <>\"\",IF(PodaciOPotencijalnomKlijentu[Predviđanje sklapanja posla]= \"Kolovoz\",PodaciOPotencijalnomKlijentu[Ponderirano Predviđanje],0),\"\"),\"\")","v":""},{"$f":"IFERROR(IF(PodaciOPotencijalnomKlijentu[Predviđanje sklapanja posla] <>\"\",IF(PodaciOPotencijalnomKlijentu[Predviđanje sklapanja posla]= \"Rujan\",PodaciOPotencijalnomKlijentu[Ponderirano Predviđanje],0),\"\"),\"\")","v":""},{"$f":"IFERROR(IF(PodaciOPotencijalnomKlijentu[Predviđanje sklapanja posla] <>\"\",IF(PodaciOPotencijalnomKlijentu[Predviđanje sklapanja posla]= \"Listopad\",PodaciOPotencijalnomKlijentu[Ponderirano Predviđanje],0),\"\"),\"\")","v":""},{"$f":"IFERROR(IF(PodaciOPotencijalnomKlijentu[Predviđanje sklapanja posla] <>\"\",IF(PodaciOPotencijalnomKlijentu[Predviđanje sklapanja posla]= \"Studeni\",PodaciOPotencijalnomKlijentu[Ponderirano Predviđanje],0),\"\"),\"\")","v":""},{"$f":"IFERROR(IF(PodaciOPotencijalnomKlijentu[Predviđanje sklapanja posla] <>\"\",IF(PodaciOPotencijalnomKlijentu[Predviđanje sklapanja posla]= \"Prosinac\",PodaciOPotencijalnomKlijentu[Ponderirano Predviđanje],0),\"\"),\"\")","v":""}]
[null,{"$f":"IFERROR(IF(AND(PodaciOPotencijalnomKlijentu[Naziv potencijalnog klijenta] <> \"\", ROW(PredviđenaProdaja[Naziv potencijalnog klijenta])<>ZadnjiUnos),PodaciOPotencijalnomKlijentu[Naziv potencijalnog klijenta], \"\"),\"\")","v":""},{"$f":"IFERROR(IF(PodaciOPotencijalnomKlijentu[Predviđanje sklapanja posla] <>\"\",IF(PodaciOPotencijalnomKlijentu[Predviđanje sklapanja posla]= \"Siječanj\",PodaciOPotencijalnomKlijentu[Ponderirano Predviđanje],0),\"\"),\"\")","v":""},{"$f":"IFERROR(IF(PodaciOPotencijalnomKlijentu[Predviđanje sklapanja posla] <>\"\",IF(PodaciOPotencijalnomKlijentu[Predviđanje sklapanja posla]= \"Veljača\",PodaciOPotencijalnomKlijentu[Ponderirano Predviđanje],0),\"\"),\"\")","v":""},{"$f":"IFERROR(IF(PodaciOPotencijalnomKlijentu[Predviđanje sklapanja posla] <>\"\",IF(PodaciOPotencijalnomKlijentu[Predviđanje sklapanja posla]= \"Ožujak\",PodaciOPotencijalnomKlijentu[Ponderirano Predviđanje],0),\"\"),\"\")","v":""},{"$f":"IFERROR(IF(PodaciOPotencijalnomKlijentu[Predviđanje sklapanja posla] <>\"\",IF(PodaciOPotencijalnomKlijentu[Predviđanje sklapanja posla]= \"Travanj\",PodaciOPotencijalnomKlijentu[Ponderirano Predviđanje],0),\"\"),\"\")","v":""},{"$f":"IFERROR(IF(PodaciOPotencijalnomKlijentu[Predviđanje sklapanja posla] <>\"\",IF(PodaciOPotencijalnomKlijentu[Predviđanje sklapanja posla]= \"Svibanj\",PodaciOPotencijalnomKlijentu[Ponderirano Predviđanje],0),\"\"),\"\")","v":""},{"$f":"IFERROR(IF(PodaciOPotencijalnomKlijentu[Predviđanje sklapanja posla] <>\"\",IF(PodaciOPotencijalnomKlijentu[Predviđanje sklapanja posla]= \"Lipanj\",PodaciOPotencijalnomKlijentu[Ponderirano Predviđanje],0),\"\"),\"\")","v":""},{"$f":"IFERROR(IF(PodaciOPotencijalnomKlijentu[Predviđanje sklapanja posla] <>\"\",IF(PodaciOPotencijalnomKlijentu[Predviđanje sklapanja posla]= \"Srpanj\",PodaciOPotencijalnomKlijentu[Ponderirano Predviđanje],0),\"\"),\"\")","v":""},{"$f":"IFERROR(IF(PodaciOPotencijalnomKlijentu[Predviđanje sklapanja posla] <>\"\",IF(PodaciOPotencijalnomKlijentu[Predviđanje sklapanja posla]= \"Kolovoz\",PodaciOPotencijalnomKlijentu[Ponderirano Predviđanje],0),\"\"),\"\")","v":""},{"$f":"IFERROR(IF(PodaciOPotencijalnomKlijentu[Predviđanje sklapanja posla] <>\"\",IF(PodaciOPotencijalnomKlijentu[Predviđanje sklapanja posla]= \"Rujan\",PodaciOPotencijalnomKlijentu[Ponderirano Predviđanje],0),\"\"),\"\")","v":""},{"$f":"IFERROR(IF(PodaciOPotencijalnomKlijentu[Predviđanje sklapanja posla] <>\"\",IF(PodaciOPotencijalnomKlijentu[Predviđanje sklapanja posla]= \"Listopad\",PodaciOPotencijalnomKlijentu[Ponderirano Predviđanje],0),\"\"),\"\")","v":""},{"$f":"IFERROR(IF(PodaciOPotencijalnomKlijentu[Predviđanje sklapanja posla] <>\"\",IF(PodaciOPotencijalnomKlijentu[Predviđanje sklapanja posla]= \"Studeni\",PodaciOPotencijalnomKlijentu[Ponderirano Predviđanje],0),\"\"),\"\")","v":""},{"$f":"IFERROR(IF(PodaciOPotencijalnomKlijentu[Predviđanje sklapanja posla] <>\"\",IF(PodaciOPotencijalnomKlijentu[Predviđanje sklapanja posla]= \"Prosinac\",PodaciOPotencijalnomKlijentu[Ponderirano Predviđanje],0),\"\"),\"\")","v":""}]
[null,{"$f":"IFERROR(IF(AND(PodaciOPotencijalnomKlijentu[Naziv potencijalnog klijenta] <> \"\", ROW(PredviđenaProdaja[Naziv potencijalnog klijenta])<>ZadnjiUnos),PodaciOPotencijalnomKlijentu[Naziv potencijalnog klijenta], \"\"),\"\")","v":""},{"$f":"IFERROR(IF(PodaciOPotencijalnomKlijentu[Predviđanje sklapanja posla] <>\"\",IF(PodaciOPotencijalnomKlijentu[Predviđanje sklapanja posla]= \"Siječanj\",PodaciOPotencijalnomKlijentu[Ponderirano Predviđanje],0),\"\"),\"\")","v":""},{"$f":"IFERROR(IF(PodaciOPotencijalnomKlijentu[Predviđanje sklapanja posla] <>\"\",IF(PodaciOPotencijalnomKlijentu[Predviđanje sklapanja posla]= \"Veljača\",PodaciOPotencijalnomKlijentu[Ponderirano Predviđanje],0),\"\"),\"\")","v":""},{"$f":"IFERROR(IF(PodaciOPotencijalnomKlijentu[Predviđanje sklapanja posla] <>\"\",IF(PodaciOPotencijalnomKlijentu[Predviđanje sklapanja posla]= \"Ožujak\",PodaciOPotencijalnomKlijentu[Ponderirano Predviđanje],0),\"\"),\"\")","v":""},{"$f":"IFERROR(IF(PodaciOPotencijalnomKlijentu[Predviđanje sklapanja posla] <>\"\",IF(PodaciOPotencijalnomKlijentu[Predviđanje sklapanja posla]= \"Travanj\",PodaciOPotencijalnomKlijentu[Ponderirano Predviđanje],0),\"\"),\"\")","v":""},{"$f":"IFERROR(IF(PodaciOPotencijalnomKlijentu[Predviđanje sklapanja posla] <>\"\",IF(PodaciOPotencijalnomKlijentu[Predviđanje sklapanja posla]= \"Svibanj\",PodaciOPotencijalnomKlijentu[Ponderirano Predviđanje],0),\"\"),\"\")","v":""},{"$f":"IFERROR(IF(PodaciOPotencijalnomKlijentu[Predviđanje sklapanja posla] <>\"\",IF(PodaciOPotencijalnomKlijentu[Predviđanje sklapanja posla]= \"Lipanj\",PodaciOPotencijalnomKlijentu[Ponderirano Predviđanje],0),\"\"),\"\")","v":""},{"$f":"IFERROR(IF(PodaciOPotencijalnomKlijentu[Predviđanje sklapanja posla] <>\"\",IF(PodaciOPotencijalnomKlijentu[Predviđanje sklapanja posla]= \"Srpanj\",PodaciOPotencijalnomKlijentu[Ponderirano Predviđanje],0),\"\"),\"\")","v":""},{"$f":"IFERROR(IF(PodaciOPotencijalnomKlijentu[Predviđanje sklapanja posla] <>\"\",IF(PodaciOPotencijalnomKlijentu[Predviđanje sklapanja posla]= \"Kolovoz\",PodaciOPotencijalnomKlijentu[Ponderirano Predviđanje],0),\"\"),\"\")","v":""},{"$f":"IFERROR(IF(PodaciOPotencijalnomKlijentu[Predviđanje sklapanja posla] <>\"\",IF(PodaciOPotencijalnomKlijentu[Predviđanje sklapanja posla]= \"Rujan\",PodaciOPotencijalnomKlijentu[Ponderirano Predviđanje],0),\"\"),\"\")","v":""},{"$f":"IFERROR(IF(PodaciOPotencijalnomKlijentu[Predviđanje sklapanja posla] <>\"\",IF(PodaciOPotencijalnomKlijentu[Predviđanje sklapanja posla]= \"Listopad\",PodaciOPotencijalnomKlijentu[Ponderirano Predviđanje],0),\"\"),\"\")","v":""},{"$f":"IFERROR(IF(PodaciOPotencijalnomKlijentu[Predviđanje sklapanja posla] <>\"\",IF(PodaciOPotencijalnomKlijentu[Predviđanje sklapanja posla]= \"Studeni\",PodaciOPotencijalnomKlijentu[Ponderirano Predviđanje],0),\"\"),\"\")","v":""},{"$f":"IFERROR(IF(PodaciOPotencijalnomKlijentu[Predviđanje sklapanja posla] <>\"\",IF(PodaciOPotencijalnomKlijentu[Predviđanje sklapanja posla]= \"Prosinac\",PodaciOPotencijalnomKlijentu[Ponderirano Predviđanje],0),\"\"),\"\")","v":""}]
[null,{"$f":"IFERROR(IF(AND(PodaciOPotencijalnomKlijentu[Naziv potencijalnog klijenta] <> \"\", ROW(PredviđenaProdaja[Naziv potencijalnog klijenta])<>ZadnjiUnos),PodaciOPotencijalnomKlijentu[Naziv potencijalnog klijenta], \"\"),\"\")","v":""},{"$f":"IFERROR(IF(PodaciOPotencijalnomKlijentu[Predviđanje sklapanja posla] <>\"\",IF(PodaciOPotencijalnomKlijentu[Predviđanje sklapanja posla]= \"Siječanj\",PodaciOPotencijalnomKlijentu[Ponderirano Predviđanje],0),\"\"),\"\")","v":""},{"$f":"IFERROR(IF(PodaciOPotencijalnomKlijentu[Predviđanje sklapanja posla] <>\"\",IF(PodaciOPotencijalnomKlijentu[Predviđanje sklapanja posla]= \"Veljača\",PodaciOPotencijalnomKlijentu[Ponderirano Predviđanje],0),\"\"),\"\")","v":""},{"$f":"IFERROR(IF(PodaciOPotencijalnomKlijentu[Predviđanje sklapanja posla] <>\"\",IF(PodaciOPotencijalnomKlijentu[Predviđanje sklapanja posla]= \"Ožujak\",PodaciOPotencijalnomKlijentu[Ponderirano Predviđanje],0),\"\"),\"\")","v":""},{"$f":"IFERROR(IF(PodaciOPotencijalnomKlijentu[Predviđanje sklapanja posla] <>\"\",IF(PodaciOPotencijalnomKlijentu[Predviđanje sklapanja posla]= \"Travanj\",PodaciOPotencijalnomKlijentu[Ponderirano Predviđanje],0),\"\"),\"\")","v":""},{"$f":"IFERROR(IF(PodaciOPotencijalnomKlijentu[Predviđanje sklapanja posla] <>\"\",IF(PodaciOPotencijalnomKlijentu[Predviđanje sklapanja posla]= \"Svibanj\",PodaciOPotencijalnomKlijentu[Ponderirano Predviđanje],0),\"\"),\"\")","v":""},{"$f":"IFERROR(IF(PodaciOPotencijalnomKlijentu[Predviđanje sklapanja posla] <>\"\",IF(PodaciOPotencijalnomKlijentu[Predviđanje sklapanja posla]= \"Lipanj\",PodaciOPotencijalnomKlijentu[Ponderirano Predviđanje],0),\"\"),\"\")","v":""},{"$f":"IFERROR(IF(PodaciOPotencijalnomKlijentu[Predviđanje sklapanja posla] <>\"\",IF(PodaciOPotencijalnomKlijentu[Predviđanje sklapanja posla]= \"Srpanj\",PodaciOPotencijalnomKlijentu[Ponderirano Predviđanje],0),\"\"),\"\")","v":""},{"$f":"IFERROR(IF(PodaciOPotencijalnomKlijentu[Predviđanje sklapanja posla] <>\"\",IF(PodaciOPotencijalnomKlijentu[Predviđanje sklapanja posla]= \"Kolovoz\",PodaciOPotencijalnomKlijentu[Ponderirano Predviđanje],0),\"\"),\"\")","v":""},{"$f":"IFERROR(IF(PodaciOPotencijalnomKlijentu[Predviđanje sklapanja posla] <>\"\",IF(PodaciOPotencijalnomKlijentu[Predviđanje sklapanja posla]= \"Rujan\",PodaciOPotencijalnomKlijentu[Ponderirano Predviđanje],0),\"\"),\"\")","v":""},{"$f":"IFERROR(IF(PodaciOPotencijalnomKlijentu[Predviđanje sklapanja posla] <>\"\",IF(PodaciOPotencijalnomKlijentu[Predviđanje sklapanja posla]= \"Listopad\",PodaciOPotencijalnomKlijentu[Ponderirano Predviđanje],0),\"\"),\"\")","v":""},{"$f":"IFERROR(IF(PodaciOPotencijalnomKlijentu[Predviđanje sklapanja posla] <>\"\",IF(PodaciOPotencijalnomKlijentu[Predviđanje sklapanja posla]= \"Studeni\",PodaciOPotencijalnomKlijentu[Ponderirano Predviđanje],0),\"\"),\"\")","v":""},{"$f":"IFERROR(IF(PodaciOPotencijalnomKlijentu[Predviđanje sklapanja posla] <>\"\",IF(PodaciOPotencijalnomKlijentu[Predviđanje sklapanja posla]= \"Prosinac\",PodaciOPotencijalnomKlijentu[Ponderirano Predviđanje],0),\"\"),\"\")","v":""}]
[null,{"$f":"IFERROR(IF(AND(PodaciOPotencijalnomKlijentu[Naziv potencijalnog klijenta] <> \"\", ROW(PredviđenaProdaja[Naziv potencijalnog klijenta])<>ZadnjiUnos),PodaciOPotencijalnomKlijentu[Naziv potencijalnog klijenta], \"\"),\"\")","v":""},{"$f":"IFERROR(IF(PodaciOPotencijalnomKlijentu[Predviđanje sklapanja posla] <>\"\",IF(PodaciOPotencijalnomKlijentu[Predviđanje sklapanja posla]= \"Siječanj\",PodaciOPotencijalnomKlijentu[Ponderirano Predviđanje],0),\"\"),\"\")","v":""},{"$f":"IFERROR(IF(PodaciOPotencijalnomKlijentu[Predviđanje sklapanja posla] <>\"\",IF(PodaciOPotencijalnomKlijentu[Predviđanje sklapanja posla]= \"Veljača\",PodaciOPotencijalnomKlijentu[Ponderirano Predviđanje],0),\"\"),\"\")","v":""},{"$f":"IFERROR(IF(PodaciOPotencijalnomKlijentu[Predviđanje sklapanja posla] <>\"\",IF(PodaciOPotencijalnomKlijentu[Predviđanje sklapanja posla]= \"Ožujak\",PodaciOPotencijalnomKlijentu[Ponderirano Predviđanje],0),\"\"),\"\")","v":""},{"$f":"IFERROR(IF(PodaciOPotencijalnomKlijentu[Predviđanje sklapanja posla] <>\"\",IF(PodaciOPotencijalnomKlijentu[Predviđanje sklapanja posla]= \"Travanj\",PodaciOPotencijalnomKlijentu[Ponderirano Predviđanje],0),\"\"),\"\")","v":""},{"$f":"IFERROR(IF(PodaciOPotencijalnomKlijentu[Predviđanje sklapanja posla] <>\"\",IF(PodaciOPotencijalnomKlijentu[Predviđanje sklapanja posla]= \"Svibanj\",PodaciOPotencijalnomKlijentu[Ponderirano Predviđanje],0),\"\"),\"\")","v":""},{"$f":"IFERROR(IF(PodaciOPotencijalnomKlijentu[Predviđanje sklapanja posla] <>\"\",IF(PodaciOPotencijalnomKlijentu[Predviđanje sklapanja posla]= \"Lipanj\",PodaciOPotencijalnomKlijentu[Ponderirano Predviđanje],0),\"\"),\"\")","v":""},{"$f":"IFERROR(IF(PodaciOPotencijalnomKlijentu[Predviđanje sklapanja posla] <>\"\",IF(PodaciOPotencijalnomKlijentu[Predviđanje sklapanja posla]= \"Srpanj\",PodaciOPotencijalnomKlijentu[Ponderirano Predviđanje],0),\"\"),\"\")","v":""},{"$f":"IFERROR(IF(PodaciOPotencijalnomKlijentu[Predviđanje sklapanja posla] <>\"\",IF(PodaciOPotencijalnomKlijentu[Predviđanje sklapanja posla]= \"Kolovoz\",PodaciOPotencijalnomKlijentu[Ponderirano Predviđanje],0),\"\"),\"\")","v":""},{"$f":"IFERROR(IF(PodaciOPotencijalnomKlijentu[Predviđanje sklapanja posla] <>\"\",IF(PodaciOPotencijalnomKlijentu[Predviđanje sklapanja posla]= \"Rujan\",PodaciOPotencijalnomKlijentu[Ponderirano Predviđanje],0),\"\"),\"\")","v":""},{"$f":"IFERROR(IF(PodaciOPotencijalnomKlijentu[Predviđanje sklapanja posla] <>\"\",IF(PodaciOPotencijalnomKlijentu[Predviđanje sklapanja posla]= \"Listopad\",PodaciOPotencijalnomKlijentu[Ponderirano Predviđanje],0),\"\"),\"\")","v":""},{"$f":"IFERROR(IF(PodaciOPotencijalnomKlijentu[Predviđanje sklapanja posla] <>\"\",IF(PodaciOPotencijalnomKlijentu[Predviđanje sklapanja posla]= \"Studeni\",PodaciOPotencijalnomKlijentu[Ponderirano Predviđanje],0),\"\"),\"\")","v":""},{"$f":"IFERROR(IF(PodaciOPotencijalnomKlijentu[Predviđanje sklapanja posla] <>\"\",IF(PodaciOPotencijalnomKlijentu[Predviđanje sklapanja posla]= \"Prosinac\",PodaciOPotencijalnomKlijentu[Ponderirano Predviđanje],0),\"\"),\"\")","v":""}]
[null,"Zbroj",{"$f":"SUBTOTAL(109,PredviđenaProdaja[Siječanj Predviđanje])","v":{"v":270000,"d":"270,000 kn"}},{"$f":"SUBTOTAL(109,PredviđenaProdaja[Veljača Predviđanje])","v":{"v":20000,"d":"20,000 kn"}},{"$f":"SUBTOTAL(109,PredviđenaProdaja[Ožujak Predviđanje])","v":{"v":20000,"d":"20,000 kn"}},{"$f":"SUBTOTAL(109,PredviđenaProdaja[Travanj Predviđanje])","v":{"v":0,"d":"0 kn"}},{"$f":"SUBTOTAL(109,PredviđenaProdaja[Svibanj Predviđanje])","v":{"v":0,"d":"0 kn"}},{"$f":"SUBTOTAL(109,PredviđenaProdaja[Lipanj Predviđanje])","v":{"v":0,"d":"0 kn"}},{"$f":"SUBTOTAL(109,PredviđenaProdaja[Srpanj Predviđanje])","v":{"v":0,"d":"0 kn"}},{"$f":"SUBTOTAL(109,PredviđenaProdaja[Kolovoz Predviđanje])","v":{"v":0,"d":"0 kn"}},{"$f":"SUBTOTAL(109,PredviđenaProdaja[Rujan Predviđanje])","v":{"v":0,"d":"0 kn"}},{"$f":"SUBTOTAL(109,PredviđenaProdaja[Listopad Predviđanje])","v":{"v":0,"d":"0 kn"}},{"$f":"SUBTOTAL(109,PredviđenaProdaja[Studeni Predviđanje])","v":{"v":0,"d":"0 kn"}},{"$f":"SUBTOTAL(109,PredviđenaProdaja[Prosinac Predviđanje])","v":{"v":0,"d":"0 kn"}}]
[null,"Kumulativni zbroj",{"$f":"C20","v":{"v":270000,"d":"270,000 kn"}},{"$f":"C21+D20","v":{"v":290000,"d":"290,000 kn"}},{"v":310000,"d":"310,000 kn"},{"v":310000,"d":"310,000 kn"},{"v":310000,"d":"310,000 kn"},{"v":310000,"d":"310,000 kn"},{"v":310000,"d":"310,000 kn"},{"v":310000,"d":"310,000 kn"},{"v":310000,"d":"310,000 kn"},{"v":310000,"d":"310,000 kn"},{"v":310000,"d":"310,000 kn"},{"v":310000,"d":"310,000 kn"}]

{"sheet":"Mjeseč. ponderirano predviđanje","index":2,"n_rows":3,"n_cols":2,"rows_kept":3}
[null,{"$f":"Naziv_tvrtke","v":"Naziv tvrtke"}]
[null,"Mjesečno ponderirano predviđanje"]
[null," "]